[Event "Late-Titled-Tuesday-Blitz-September-12-2023"]
[Site "Chess.com"]
[Date "2023.09.12"]
[Round "4"]
[White "Casper"]
[Black "KamlaPasand"]
[Result "1-0"]
[WhiteElo "2469"]
[BlackElo "2288"]
[TimeControl "180+1"]
[EndTime "14:34:28 PDT"]
[Termination "Casper won by resignation"]

1. e4 {[%clk 0:03:00.9]} 1... e5 {[%clk 0:03:00]} 2. d4 {[%clk 0:03:00.5]} 2...
exd4 {[%clk 0:02:59.5]} 3. Qxd4 {[%clk 0:03:01.4]} 3... Nc6 {[%clk 0:02:58.5]}
4. Qe3 {[%clk 0:03:02]} 4... Nf6 {[%clk 0:02:58.8]} 5. Nc3 {[%clk 0:03:02.6]}
5... Bb4 {[%clk 0:02:56.5]} 6. Bd2 {[%clk 0:03:03.1]} 6... O-O {[%clk
0:02:56.5]} 7. O-O-O {[%clk 0:03:03.7]} 7... d6 {[%clk 0:02:55.8]} 8. Bc4 {[%clk
0:03:02.4]} 8... Be6 {[%clk 0:02:55.6]} 9. Bxe6 {[%clk 0:03:00.5]} 9... fxe6
{[%clk 0:02:56.5]} 10. Nge2 {[%clk 0:03:00.5]} 10... Ng4 {[%clk 0:02:53.9]} 11.
Qh3 {[%clk 0:02:50.8]} 11... Nxf2 {[%clk 0:02:52.6]} 12. Qxe6+ {[%clk
0:02:50.6]} 12... Kh8 {[%clk 0:02:53.3]} 13. Ng3 {[%clk 0:02:42]} 13... Nxh1
{[%clk 0:02:52.2]} 14. Rxh1 {[%clk 0:02:42.8]} 14... Qf6 {[%clk 0:02:49.9]} 15.
Qg4 {[%clk 0:02:38.8]} 15... Ne5 {[%clk 0:02:47.6]} 16. Qh3 {[%clk 0:02:31]}
16... Nc4 {[%clk 0:02:44.1]} 17. Be1 {[%clk 0:02:27.1]} 17... Qg5+ {[%clk
0:02:37]} 18. Kb1 {[%clk 0:02:27]} 18... a5 {[%clk 0:02:17.7]} 19. a3 {[%clk
0:02:26.6]} 19... Bc5 {[%clk 0:02:14.7]} 20. Nf5 {[%clk 0:02:23.2]} 20... Ne3
{[%clk 0:02:11.8]} 21. Bd2 {[%clk 0:02:09.1]} 21... Qxg2 {[%clk 0:02:08.4]} 22.
Qxg2 {[%clk 0:02:07.6]} 22... Nxg2 {[%clk 0:02:08.6]} 23. Nd5 {[%clk 0:02:08.2]}
23... c6 {[%clk 0:02:04.4]} 24. Nc7 {[%clk 0:02:01.1]} 24... Rac8 {[%clk
0:02:01.2]} 25. Ne6 {[%clk 0:02:00.2]} 25... Rf6 {[%clk 0:01:55.7]} 26. Nxc5
{[%clk 0:01:51]} 26... dxc5 {[%clk 0:01:56.6]} 27. Rg1 {[%clk 0:01:50.5]} 27...
Rg6 {[%clk 0:01:55.4]} 28. Ne7 {[%clk 0:01:49.7]} 28... Rd6 {[%clk 0:01:48.4]}
29. Bc3 {[%clk 0:01:38.2]} 29... Re8 {[%clk 0:01:44.3]} 30. Bxg7+ {[%clk
0:01:17.1]} 30... Kxg7 {[%clk 0:01:43.2]} 31. Nf5+ {[%clk 0:01:18]} 31... Kf6
{[%clk 0:01:43.3]} 32. Nxd6 {[%clk 0:01:18.6]} 32... Rd8 {[%clk 0:01:39.8]} 33.
e5+ {[%clk 0:01:18.7]} 33... Ke6 {[%clk 0:01:37.3]} 34. Rxg2 {[%clk 0:01:18.4]}
1-0

[Event "Late-Titled-Tuesday-Blitz-September-12-2023"]
[Site "Chess.com"]
[Date "2023.09.12"]
[Round "4"]
[White "ARTHURMOTIVATOR"]
[Black "DefiantChair"]
[Result "0-1"]
[WhiteElo "2383"]
[BlackElo "2665"]
[TimeControl "180+1"]
[EndTime "14:34:33 PDT"]
[Termination "DefiantChair won by resignation"]

1. e4 {[%clk 0:02:58.4]} 1... c5 {[%clk 0:02:56.3]} 2. b3 {[%clk 0:02:51.8]}
2... g6 {[%clk 0:02:54.5]} 3. Bb2 {[%clk 0:02:51.6]} 3... Nf6 {[%clk 0:02:55]}
4. e5 {[%clk 0:02:52.3]} 4... Nd5 {[%clk 0:02:55.4]} 5. Nf3 {[%clk 0:02:53]}
5... Bg7 {[%clk 0:02:55.4]} 6. d4 {[%clk 0:02:53.7]} 6... cxd4 {[%clk
0:02:54.4]} 7. Qxd4 {[%clk 0:02:53.3]} 7... Nc7 {[%clk 0:02:53]} 8. Nbd2 {[%clk
0:02:44.8]} 8... O-O {[%clk 0:02:52.7]} 9. O-O-O {[%clk 0:02:40.7]} 9... d5
{[%clk 0:02:52.3]} 10. Qh4 {[%clk 0:02:38.2]} 10... Nc6 {[%clk 0:02:48.8]} 11.
Kb1 {[%clk 0:02:28.9]} 11... Bf5 {[%clk 0:02:46.6]} 12. g4 {[%clk 0:02:26.4]}
12... Bc8 {[%clk 0:02:44.7]} 13. a3 {[%clk 0:02:05.9]} 13... b5 {[%clk
0:02:38.8]} 14. Bd3 {[%clk 0:02:04.8]} 14... b4 {[%clk 0:02:38]} 15. a4 {[%clk
0:02:00.8]} 15... Ne6 {[%clk 0:02:37.5]} 16. Ng5 {[%clk 0:01:43.3]} 16... Nxg5
{[%clk 0:02:36.7]} 17. Qxg5 {[%clk 0:01:44.2]} 17... h6 {[%clk 0:02:26]} 18. Qh4
{[%clk 0:01:36.8]} 18... Nxe5 {[%clk 0:02:25.7]} 19. Bxe5 {[%clk 0:01:34.4]}
19... Bxe5 {[%clk 0:02:26.6]} 20. Qxh6 {[%clk 0:01:34.3]} 20... Bg7 {[%clk
0:02:26.8]} 21. Qf4 {[%clk 0:01:17.3]} 21... e5 {[%clk 0:02:26.6]} 22. Qg3
{[%clk 0:01:16]} 22... e4 {[%clk 0:02:26.1]} 23. Nxe4 {[%clk 0:00:42.9]} 23...
dxe4 {[%clk 0:02:25.7]} 24. Bxe4 {[%clk 0:00:43.8]} 24... Qf6 {[%clk 0:02:25.5]}
25. c3 {[%clk 0:00:43.6]} 25... bxc3 {[%clk 0:02:22.7]} 26. Kc2 {[%clk
0:00:33.1]} 26... Rb8 {[%clk 0:02:22.7]} 27. g5 {[%clk 0:00:21.4]} 27... Qb6
{[%clk 0:02:22]} 28. h4 {[%clk 0:00:19.6]} 28... Qxb3+ {[%clk 0:02:21]} 0-1

[Event "Late-Titled-Tuesday-Blitz-September-12-2023"]
[Site "Chess.com"]
[Date "2023.09.12"]
[Round "4"]
[White "Francisco_Ferrari"]
[Black "GiorgianBarbosa"]
[Result "0-1"]
[WhiteElo "2225"]
[BlackElo "2432"]
[TimeControl "180+1"]
[EndTime "14:34:37 PDT"]
[Termination "GiorgianBarbosa won by resignation"]

1. d4 {[%clk 0:03:00.9]} 1... Nf6 {[%clk 0:02:47.9]} 2. Bg5 {[%clk 0:02:58.6]}
2... e6 {[%clk 0:02:48.8]} 3. Bxf6 {[%clk 0:02:51.1]} 3... Qxf6 {[%clk
0:02:48.6]} 4. e4 {[%clk 0:02:51.4]} 4... d6 {[%clk 0:02:48.9]} 5. Nf3 {[%clk
0:02:51.3]} 5... Nc6 {[%clk 0:02:47.7]} 6. c3 {[%clk 0:02:43.5]} 6... e5 {[%clk
0:02:45.9]} 7. d5 {[%clk 0:02:43.9]} 7... Nb8 {[%clk 0:02:43.4]} 8. Nbd2 {[%clk
0:02:43.9]} 8... g6 {[%clk 0:02:42.8]} 9. Be2 {[%clk 0:02:39.9]} 9... Bg7 {[%clk
0:02:42.6]} 10. O-O {[%clk 0:02:37.4]} 10... O-O {[%clk 0:02:43.5]} 11. c4
{[%clk 0:02:37.8]} 11... a5 {[%clk 0:02:42.6]} 12. b3 {[%clk 0:02:20.9]} 12...
Qe7 {[%clk 0:02:40.4]} 13. a3 {[%clk 0:02:18.7]} 13... Na6 {[%clk 0:02:34.9]}
14. b4 {[%clk 0:02:13.2]} 14... f5 {[%clk 0:02:35]} 15. Qb3 {[%clk 0:01:56.7]}
15... f4 {[%clk 0:02:29.5]} 16. c5 {[%clk 0:01:51.5]} 16... g5 {[%clk
0:02:27.1]} 17. Bxa6 {[%clk 0:01:33.1]} 17... Rxa6 {[%clk 0:02:24.5]} 18. b5
{[%clk 0:01:33.6]} 18... Ra8 {[%clk 0:02:24.4]} 19. b6 {[%clk 0:01:34.2]} 19...
g4 {[%clk 0:02:19.1]} 20. Ne1 {[%clk 0:01:33.2]} 20... Kh8 {[%clk 0:02:15.9]}
21. bxc7 {[%clk 0:01:21.8]} 21... dxc5 {[%clk 0:02:13.1]} 22. Qb6 {[%clk
0:01:10.7]} 22... Ra6 {[%clk 0:02:10.2]} 23. d6 {[%clk 0:01:10.6]} 23... Qd7
{[%clk 0:02:03.5]} 24. Qxc5 {[%clk 0:01:08.9]} 24... Rxd6 {[%clk 0:02:03.8]} 25.
Nc4 {[%clk 0:00:59.4]} 25... Rc6 {[%clk 0:01:55.8]} 26. Qb5 {[%clk 0:00:56.3]}
26... Qxc7 {[%clk 0:01:56]} 27. Nxa5 {[%clk 0:00:46.8]} 27... Rc5 {[%clk
0:01:55.2]} 28. Qb4 {[%clk 0:00:39.1]} 28... Qxa5 {[%clk 0:01:50.9]} 0-1

[Event "Late-Titled-Tuesday-Blitz-September-12-2023"]
[Site "Chess.com"]
[Date "2023.09.12"]
[Round "4"]
[White "PotapovaM"]
[Black "KafkaesqueKnight"]
[Result "1-0"]
[WhiteElo "2642"]
[BlackElo "2391"]
[TimeControl "180+1"]
[EndTime "14:34:38 PDT"]
[Termination "PotapovaM won by resignation"]

1. e4 {[%clk 0:02:57.7]} 1... c5 {[%clk 0:02:59.9]} 2. Nc3 {[%clk 0:02:55.1]}
2... Nc6 {[%clk 0:02:59.1]} 3. Bb5 {[%clk 0:02:54.1]} 3... Nd4 {[%clk
0:02:58.5]} 4. Nf3 {[%clk 0:02:53.6]} 4... Nxb5 {[%clk 0:02:57.7]} 5. Nxb5
{[%clk 0:02:53.3]} 5... e6 {[%clk 0:02:54.2]} 6. d4 {[%clk 0:02:50.7]} 6... Qa5+
{[%clk 0:02:53.3]} 7. Nc3 {[%clk 0:02:50.3]} 7... cxd4 {[%clk 0:02:52]} 8. Qxd4
{[%clk 0:02:48.8]} 8... Nf6 {[%clk 0:02:40.9]} 9. O-O {[%clk 0:02:48.7]} 9... d6
{[%clk 0:02:39.9]} 10. Bg5 {[%clk 0:02:35.3]} 10... Be7 {[%clk 0:02:38.8]} 11.
Bxf6 {[%clk 0:02:35]} 11... gxf6 {[%clk 0:02:38.3]} 12. Nd2 {[%clk 0:02:30.5]}
12... Qe5 {[%clk 0:02:34.2]} 13. Qd3 {[%clk 0:02:28.9]} 13... Bd7 {[%clk
0:02:29.3]} 14. Nc4 {[%clk 0:02:28.3]} 14... Qc5 {[%clk 0:02:28.1]} 15. Rad1
{[%clk 0:02:24]} 15... Rd8 {[%clk 0:02:04]} 16. Nxd6+ {[%clk 0:02:22.5]} 16...
Bxd6 {[%clk 0:02:04.3]} 17. Qxd6 {[%clk 0:02:22.6]} 17... Qxd6 {[%clk
0:02:05.2]} 18. Rxd6 {[%clk 0:02:23.4]} 18... Ke7 {[%clk 0:02:06.1]} 19. Rd3
{[%clk 0:02:20.4]} 19... Bc6 {[%clk 0:02:07]} 20. Rfd1 {[%clk 0:02:17.2]} 20...
Rxd3 {[%clk 0:02:04.7]} 21. Rxd3 {[%clk 0:02:18.1]} 21... Rg8 {[%clk 0:01:57.6]}
22. f3 {[%clk 0:02:17]} 22... Rg5 {[%clk 0:01:54]} 23. Kf2 {[%clk 0:02:15.3]}
23... h5 {[%clk 0:01:51.1]} 24. h4 {[%clk 0:02:12.2]} 24... Ra5 {[%clk
0:01:45.5]} 25. Ke3 {[%clk 0:02:09.9]} 25... b5 {[%clk 0:01:33.3]} 26. a3 {[%clk
0:02:09.5]} 26... Ra6 {[%clk 0:01:29.7]} 27. Ne2 {[%clk 0:02:07.5]} 27... Rb6
{[%clk 0:01:27.1]} 28. b4 {[%clk 0:02:06.1]} 28... Bd7 {[%clk 0:01:23.2]} 29.
Ng3 {[%clk 0:02:03.6]} 29... Rc6 {[%clk 0:01:16.5]} 30. Kd2 {[%clk 0:02:03.8]}
30... f5 {[%clk 0:01:12.3]} 31. exf5 {[%clk 0:02:02.4]} 31... Rc4 {[%clk
0:01:12.5]} 32. f6+ {[%clk 0:02:00.6]} 32... Ke8 {[%clk 0:01:06.3]} 33. Ne4
{[%clk 0:01:51.7]} 33... Rc6 {[%clk 0:01:04.1]} 34. Nd6+ {[%clk 0:01:50]} 34...
Kf8 {[%clk 0:01:02.6]} 1-0

[Event "Late-Titled-Tuesday-Blitz-September-12-2023"]
[Site "Chess.com"]
[Date "2023.09.12"]
[Round "4"]
[White "DryCounty"]
[Black "NovakCabarkapa"]
[Result "1-0"]
[WhiteElo "2666"]
[BlackElo "2809"]
[TimeControl "180+1"]
[EndTime "14:34:41 PDT"]
[Termination "DryCounty won by resignation"]

1. e4 {[%clk 0:02:59.7]} 1... g6 {[%clk 0:02:57.7]} 2. d4 {[%clk 0:02:59.2]}
2... Bg7 {[%clk 0:02:58.6]} 3. Nf3 {[%clk 0:02:59.3]} 3... c6 {[%clk 0:02:59.3]}
4. c3 {[%clk 0:02:57.5]} 4... d5 {[%clk 0:02:59.2]} 5. Nbd2 {[%clk 0:02:56.2]}
5... dxe4 {[%clk 0:02:59.1]} 6. Nxe4 {[%clk 0:02:56.2]} 6... Nf6 {[%clk
0:03:00]} 7. Nxf6+ {[%clk 0:02:55.5]} 7... exf6 {[%clk 0:03:00.9]} 8. Bc4 {[%clk
0:02:49.9]} 8... Ke7 {[%clk 0:03:00.9]} 9. O-O {[%clk 0:02:46.3]} 9... Re8
{[%clk 0:02:58.9]} 10. Qb3 {[%clk 0:02:39.9]} 10... Kf8 {[%clk 0:02:43.7]} 11.
Bxf7 {[%clk 0:02:36.4]} 11... Re7 {[%clk 0:02:44.1]} 12. Bc4 {[%clk 0:02:35.7]}
12... b5 {[%clk 0:02:43.7]} 13. Bd3 {[%clk 0:02:31.4]} 13... Bg4 {[%clk
0:02:40.6]} 14. Nh4 {[%clk 0:02:21.7]} 14... Be6 {[%clk 0:02:32.7]} 15. Qc2
{[%clk 0:02:21.3]} 15... Bf7 {[%clk 0:02:30.5]} 16. Bd2 {[%clk 0:02:14.1]} 16...
Nd7 {[%clk 0:02:30]} 17. Rfe1 {[%clk 0:02:12.2]} 17... Rxe1+ {[%clk 0:02:27.8]}
18. Rxe1 {[%clk 0:02:11.2]} 18... Nb6 {[%clk 0:02:25.7]} 19. b3 {[%clk
0:02:01.3]} 19... a5 {[%clk 0:02:24.3]} 20. Nf3 {[%clk 0:01:45.5]} 20... a4
{[%clk 0:02:21.8]} 21. c4 {[%clk 0:01:43.8]} 21... axb3 {[%clk 0:02:21.5]} 22.
axb3 {[%clk 0:01:43.6]} 22... Kg8 {[%clk 0:02:17.3]} 23. cxb5 {[%clk 0:01:39.8]}
23... cxb5 {[%clk 0:02:18.2]} 24. Bxb5 {[%clk 0:01:37.7]} 24... Rc8 {[%clk
0:02:14.6]} 25. Qd3 {[%clk 0:01:34.3]} 25... Qd5 {[%clk 0:02:11.5]} 26. Ba5
{[%clk 0:01:29.9]} 26... Qd6 {[%clk 0:01:57.9]} 27. Bxb6 {[%clk 0:01:26.8]}
27... Qxb6 {[%clk 0:01:58.8]} 28. Bc4 {[%clk 0:01:24.3]} 28... Bxc4 {[%clk
0:01:48.3]} 29. bxc4 {[%clk 0:01:23.9]} 29... Qb4 {[%clk 0:01:49.2]} 30. c5
{[%clk 0:01:18.2]} 30... Rd8 {[%clk 0:01:43]} 31. Rd1 {[%clk 0:01:12.2]} 31...
f5 {[%clk 0:01:42.7]} 32. g3 {[%clk 0:01:09.3]} 32... Qa4 {[%clk 0:01:38.3]} 33.
d5 {[%clk 0:01:00.2]} 1-0

[Event "Late-Titled-Tuesday-Blitz-September-12-2023"]
[Site "Chess.com"]
[Date "2023.09.12"]
[Round "4"]
[White "thedjoker98"]
[Black "micke12a"]
[Result "1-0"]
[WhiteElo "2618"]
[BlackElo "2386"]
[TimeControl "180+1"]
[EndTime "14:34:53 PDT"]
[Termination "thedjoker98 won by resignation"]

1. d4 {[%clk 0:02:59.8]} 1... Nf6 {[%clk 0:02:59.5]} 2. c4 {[%clk 0:02:59.8]}
2... e6 {[%clk 0:02:58.8]} 3. Nc3 {[%clk 0:03:00.4]} 3... d5 {[%clk 0:02:59]} 4.
cxd5 {[%clk 0:02:59.9]} 4... exd5 {[%clk 0:02:58.8]} 5. Bg5 {[%clk 0:03:00.3]}
5... c6 {[%clk 0:02:59]} 6. e3 {[%clk 0:03:00.8]} 6... Be7 {[%clk 0:02:59]} 7.
Bd3 {[%clk 0:03:01.3]} 7... O-O {[%clk 0:02:59.5]} 8. Qc2 {[%clk 0:03:01.3]}
8... Nbd7 {[%clk 0:02:57.9]} 9. Nf3 {[%clk 0:03:01]} 9... h6 {[%clk 0:02:57.9]}
10. Bh4 {[%clk 0:03:01.3]} 10... Re8 {[%clk 0:02:58.4]} 11. O-O {[%clk
0:03:01.6]} 11... Nf8 {[%clk 0:02:57.3]} 12. h3 {[%clk 0:03:00.6]} 12... Ne6
{[%clk 0:02:46.4]} 13. Ne5 {[%clk 0:03:00]} 13... Bd6 {[%clk 0:02:39.4]} 14. f4
{[%clk 0:02:59.1]} 14... Be7 {[%clk 0:02:30.7]} 15. Rae1 {[%clk 0:02:48.6]}
15... Nd7 {[%clk 0:02:22.7]} 16. Bxe7 {[%clk 0:02:47.8]} 16... Qxe7 {[%clk
0:02:21.5]} 17. f5 {[%clk 0:02:47.2]} 17... Ng5 {[%clk 0:02:00.3]} 18. Nxd7
{[%clk 0:02:46.6]} 18... Bxd7 {[%clk 0:01:51]} 19. f6 {[%clk 0:02:46.6]} 19...
Qd6 {[%clk 0:01:51.2]} 20. fxg7 {[%clk 0:02:34.4]} 20... Qg3 {[%clk 0:01:48.8]}
21. Kh1 {[%clk 0:02:24.6]} 21... Rxe3 {[%clk 0:01:40]} 22. Rxe3 {[%clk
0:02:22.2]} 22... Qxe3 {[%clk 0:01:39.5]} 23. h4 {[%clk 0:02:17.4]} 23... Ne4
{[%clk 0:01:20.6]} 24. Bxe4 {[%clk 0:02:06.9]} 24... dxe4 {[%clk 0:01:18.7]} 25.
Nxe4 {[%clk 0:02:07.8]} 25... Kxg7 {[%clk 0:01:13.9]} 26. Nf6 {[%clk 0:02:07]}
26... Be6 {[%clk 0:00:28.7]} 27. Qh7+ {[%clk 0:02:06]} 27... Kf8 {[%clk
0:00:28.8]} 28. Qh8+ {[%clk 0:02:06.1]} 28... Ke7 {[%clk 0:00:28.5]} 29. Qxa8
{[%clk 0:02:04]} 29... Qxd4 {[%clk 0:00:17.9]} 30. Qe8+ {[%clk 0:02:03.1]} 30...
Kd6 {[%clk 0:00:17]} 31. Qd8+ {[%clk 0:02:03.3]} 1-0

[Event "Late-Titled-Tuesday-Blitz-September-12-2023"]
[Site "Chess.com"]
[Date "2023.09.12"]
[Round "4"]
[White "PabloZarnicki"]
[Black "talaicito"]
[Result "1-0"]
[WhiteElo "2495"]
[BlackElo "2210"]
[TimeControl "180+1"]
[EndTime "14:34:56 PDT"]
[Termination "PabloZarnicki won by resignation"]

1. e4 {[%clk 0:03:00.9]} 1... c5 {[%clk 0:02:59.4]} 2. Nf3 {[%clk 0:03:01.2]}
2... d6 {[%clk 0:02:58.9]} 3. Bb5+ {[%clk 0:03:00.2]} 3... Nd7 {[%clk
0:02:56.8]} 4. d4 {[%clk 0:02:59.7]} 4... cxd4 {[%clk 0:02:56.1]} 5. Qxd4 {[%clk
0:03:00.6]} 5... a6 {[%clk 0:02:54.6]} 6. Bxd7+ {[%clk 0:02:58.1]} 6... Bxd7
{[%clk 0:02:54.3]} 7. Nc3 {[%clk 0:02:58.3]} 7... Nf6 {[%clk 0:02:50.7]} 8. Bg5
{[%clk 0:02:57.4]} 8... e6 {[%clk 0:02:45.2]} 9. O-O-O {[%clk 0:02:54.5]} 9...
Rc8 {[%clk 0:02:36.1]} 10. e5 {[%clk 0:02:51.2]} 10... dxe5 {[%clk 0:02:23.1]}
11. Nxe5 {[%clk 0:02:52.1]} 11... Rc7 {[%clk 0:02:06.3]} 12. Ne4 {[%clk
0:02:44.1]} 12... Be7 {[%clk 0:02:00]} 13. Nd6+ {[%clk 0:02:39.4]} 13... Bxd6
{[%clk 0:01:57.6]} 14. Qxd6 {[%clk 0:02:40.3]} 14... Qc8 {[%clk 0:01:49.7]} 15.
Bxf6 {[%clk 0:02:26.5]} 15... gxf6 {[%clk 0:01:43.9]} 16. Ng4 {[%clk 0:02:22.6]}
16... Qd8 {[%clk 0:00:52.6]} 17. Nxf6+ {[%clk 0:02:17.5]} 17... Qxf6 {[%clk
0:00:51.4]} 18. Qxc7 {[%clk 0:02:18.4]} 18... Bc6 {[%clk 0:00:47.3]} 19. Qb8+
{[%clk 0:02:18.1]} 19... Ke7 {[%clk 0:00:46.5]} 20. Qd6+ {[%clk 0:02:18.1]}
20... Ke8 {[%clk 0:00:46.7]} 21. f3 {[%clk 0:02:09.5]} 21... h5 {[%clk
0:00:45.5]} 22. Rd2 {[%clk 0:02:09]} 22... Rh6 {[%clk 0:00:35.6]} 23. Rhd1
{[%clk 0:02:07.1]} 23... Bd5 {[%clk 0:00:23]} 24. Rxd5 {[%clk 0:02:02.5]} 24...
exd5 {[%clk 0:00:21.8]} 25. Re1+ {[%clk 0:02:02.3]} 25... Qe6 {[%clk 0:00:16.5]}
26. Qb8+ {[%clk 0:02:00.6]} 26... Ke7 {[%clk 0:00:12.7]} 27. Qxb7+ {[%clk
0:01:59.9]} 27... Kf6 {[%clk 0:00:12]} 28. Rxe6+ {[%clk 0:01:57.8]} 28... fxe6
{[%clk 0:00:12.9]} 29. Qxa6 {[%clk 0:01:56.1]} 1-0

[Event "Late-Titled-Tuesday-Blitz-September-12-2023"]
[Site "Chess.com"]
[Date "2023.09.12"]
[Round "4"]
[White "antispeciesism"]
[Black "Miguelitro69"]
[Result "0-1"]
[WhiteElo "2049"]
[BlackElo "2281"]
[TimeControl "180+1"]
[EndTime "14:35:00 PDT"]
[Termination "Miguelitro69 won by resignation"]

1. d4 {[%clk 0:03:00.9]} 1... Nf6 {[%clk 0:02:57.9]} 2. c4 {[%clk 0:03:01.2]}
2... d6 {[%clk 0:02:57.4]} 3. Nc3 {[%clk 0:03:01.6]} 3... g6 {[%clk 0:02:57.9]}
4. e4 {[%clk 0:03:02.3]} 4... Bg7 {[%clk 0:02:58.3]} 5. Nf3 {[%clk 0:03:03]}
5... O-O {[%clk 0:02:58.5]} 6. Be2 {[%clk 0:03:03.8]} 6... e5 {[%clk 0:02:58]}
7. O-O {[%clk 0:03:04.2]} 7... exd4 {[%clk 0:02:57.5]} 8. Nxd4 {[%clk
0:03:05.1]} 8... Re8 {[%clk 0:02:57.7]} 9. f3 {[%clk 0:03:03.8]} 9... Nc6 {[%clk
0:02:58.1]} 10. Be3 {[%clk 0:03:03.6]} 10... Be6 {[%clk 0:02:50.2]} 11. Qd2
{[%clk 0:02:35.3]} 11... Nd7 {[%clk 0:02:33.4]} 12. Nxc6 {[%clk 0:02:18.8]}
12... bxc6 {[%clk 0:02:31.5]} 13. Bg5 {[%clk 0:01:15.6]} 13... Qb8 {[%clk
0:02:21.6]} 14. Rac1 {[%clk 0:01:07.1]} 14... Qb4 {[%clk 0:02:17.2]} 15. b3
{[%clk 0:00:59.8]} 15... a5 {[%clk 0:02:12.7]} 16. Rfd1 {[%clk 0:00:49.9]} 16...
Nc5 {[%clk 0:02:01.8]} 17. Be3 {[%clk 0:00:18.7]} 17... a4 {[%clk 0:02:00.2]}
18. Nb1 {[%clk 0:00:11.9]} 18... Qxd2 {[%clk 0:01:56.6]} 19. Nxd2 {[%clk
0:00:12.8]} 19... axb3 {[%clk 0:01:50.9]} 20. axb3 {[%clk 0:00:12.9]} 20... Ra2
{[%clk 0:01:48.8]} 21. b4 {[%clk 0:00:11.1]} 21... Na4 {[%clk 0:01:46.6]} 22.
Nb1 {[%clk 0:00:02.6]} 0-1

[Event "Late-Titled-Tuesday-Blitz-September-12-2023"]
[Site "Chess.com"]
[Date "2023.09.12"]
[Round "4"]
[White "Kosak12"]
[Black "ArtemDyachuk"]
[Result "1-0"]
[WhiteElo "2797"]
[BlackElo "2540"]
[TimeControl "180+1"]
[EndTime "14:35:07 PDT"]
[Termination "Kosak12 won by checkmate"]

1. e4 {[%clk 0:02:59]} 1... c5 {[%clk 0:03:00]} 2. Nf3 {[%clk 0:02:58]} 2... d6
{[%clk 0:03:00.2]} 3. d4 {[%clk 0:02:56]} 3... cxd4 {[%clk 0:03:01.1]} 4. Nxd4
{[%clk 0:02:56.5]} 4... Nf6 {[%clk 0:03:01.3]} 5. Nc3 {[%clk 0:02:57.2]} 5...
Nc6 {[%clk 0:03:02]} 6. Bg5 {[%clk 0:02:51.7]} 6... e6 {[%clk 0:03:02]} 7. Bb5
{[%clk 0:02:51.6]} 7... Bd7 {[%clk 0:03:00.8]} 8. Bxc6 {[%clk 0:02:51.5]} 8...
bxc6 {[%clk 0:02:57.7]} 9. Qf3 {[%clk 0:02:52.1]} 9... e5 {[%clk 0:02:42.3]} 10.
Nf5 {[%clk 0:02:51.3]} 10... Rb8 {[%clk 0:02:23.7]} 11. O-O-O {[%clk 0:02:49.2]}
11... Qb6 {[%clk 0:01:55.8]} 12. Nxd6+ {[%clk 0:02:37.7]} 12... Bxd6 {[%clk
0:01:45.1]} 13. Rxd6 {[%clk 0:02:38.6]} 13... Qxb2+ {[%clk 0:01:36.1]} 14. Kd2
{[%clk 0:02:38.1]} 14... Qb4 {[%clk 0:01:08.4]} 15. Rxf6 {[%clk 0:02:19.3]}
15... gxf6 {[%clk 0:00:45.1]} 16. Qxf6 {[%clk 0:02:19.4]} 16... Be6 {[%clk
0:00:20.5]} 17. Qxh8+ {[%clk 0:02:13.5]} 17... Kd7 {[%clk 0:00:20.6]} 18. Qxe5
{[%clk 0:02:14.2]} 18... Rb5 {[%clk 0:00:14.9]} 19. Rb1 {[%clk 0:02:00.8]} 19...
Rxe5 {[%clk 0:00:04.9]} 20. Rxb4 {[%clk 0:02:00.8]} 20... Rxg5 {[%clk
0:00:05.8]} 21. g3 {[%clk 0:02:01.4]} 21... Rh5 {[%clk 0:00:03.7]} 22. h4 {[%clk
0:02:01.8]} 22... Ra5 {[%clk 0:00:04.4]} 23. a4 {[%clk 0:02:01.7]} 23... Kd6
{[%clk 0:00:04.5]} 24. Ke3 {[%clk 0:02:01.7]} 24... Kc5 {[%clk 0:00:04.4]} 25.
Rb7 {[%clk 0:02:02.1]} 25... Kc4 {[%clk 0:00:04.1]} 26. Kd2 {[%clk 0:02:01.9]}
26... c5 {[%clk 0:00:03.4]} 27. f4 {[%clk 0:02:00.4]} 27... Ra6 {[%clk
0:00:03.5]} 28. Nb5 {[%clk 0:01:56.8]} 28... Rxa4 {[%clk 0:00:03.7]} 29. Nd6+
{[%clk 0:01:57.1]} 29... Kd4 {[%clk 0:00:03.9]} 30. c3# {[%clk 0:01:57.7]} 1-0

[Event "Late-Titled-Tuesday-Blitz-September-12-2023"]
[Site "Chess.com"]
[Date "2023.09.12"]
[Round "4"]
[White "Dr_crypt"]
[Black "CixPer1968"]
[Result "1-0"]
[WhiteElo "2428"]
[BlackElo "2203"]
[TimeControl "180+1"]
[EndTime "14:35:10 PDT"]
[Termination "Dr_crypt won by resignation"]

1. d4 {[%clk 0:03:00]} 1... d5 {[%clk 0:02:57.3]} 2. c4 {[%clk 0:02:59.6]} 2...
c6 {[%clk 0:02:57.3]} 3. cxd5 {[%clk 0:02:59]} 3... cxd5 {[%clk 0:02:57.2]} 4.
Bf4 {[%clk 0:02:59.6]} 4... Nf6 {[%clk 0:02:57]} 5. e3 {[%clk 0:02:59.5]} 5...
Nc6 {[%clk 0:02:56.8]} 6. Nc3 {[%clk 0:02:59.3]} 6... a6 {[%clk 0:02:56.4]} 7.
Rc1 {[%clk 0:02:48.9]} 7... Bf5 {[%clk 0:02:54.2]} 8. Qb3 {[%clk 0:02:44.9]}
8... Na5 {[%clk 0:02:31.2]} 9. Qa4+ {[%clk 0:02:43.8]} 9... b5 {[%clk
0:02:31.8]} 10. Qd1 {[%clk 0:02:32.7]} 10... e6 {[%clk 0:02:29.7]} 11. Nf3
{[%clk 0:02:31.1]} 11... Bd6 {[%clk 0:02:29]} 12. Bg5 {[%clk 0:02:30]} 12... h6
{[%clk 0:02:28.2]} 13. Bh4 {[%clk 0:02:29.7]} 13... Rc8 {[%clk 0:02:26.7]} 14.
Bd3 {[%clk 0:02:29.1]} 14... Bxd3 {[%clk 0:02:18.7]} 15. Qxd3 {[%clk 0:02:29.6]}
15... O-O {[%clk 0:02:18.3]} 16. O-O {[%clk 0:02:27.8]} 16... Nc4 {[%clk
0:02:14.3]} 17. b3 {[%clk 0:02:26]} 17... Nb6 {[%clk 0:02:14.8]} 18. Ne5 {[%clk
0:02:20.5]} 18... Be7 {[%clk 0:02:05.5]} 19. a4 {[%clk 0:01:56.5]} 19... b4
{[%clk 0:01:57.6]} 20. Na2 {[%clk 0:01:53.7]} 20... a5 {[%clk 0:01:57]} 21. Qb5
{[%clk 0:01:46.5]} 21... Nbd7 {[%clk 0:00:43.5]} 22. Rxc8 {[%clk 0:01:44.9]}
22... Qxc8 {[%clk 0:00:43.6]} 23. Nxd7 {[%clk 0:01:44.4]} 23... Nxd7 {[%clk
0:00:16.5]} 24. Bxe7 {[%clk 0:01:43.1]} 24... Re8 {[%clk 0:00:15.4]} 25. Rc1
{[%clk 0:01:42.2]} 1-0